[Event "*** SCC Grand Prix: Titled Tuesday Blitz"]
[Site "Chess.com"]
[Date "2020.09.08"]
[Round "7"]
[White "ailime26"]
[Black "nitpicker"]
[Result "0-1"]
[WhiteElo "1897"]
[BlackElo "2216"]
[TimeControl "180+1"]
[EndTime "11:17:53 PDT"]
[Termination "nitpicker won on time"]

1. e4 {[%clk 0:03:00.9]} 1... d5 {[%clk 0:02:59.9]} 2. exd5 {[%clk 0:02:41]}
2... Qxd5 {[%clk 0:02:59.2]} 3. Nc3 {[%clk 0:02:40.7]} 3... Qd8 {[%clk
0:02:59.1]} 4. d4 {[%clk 0:02:41.6]} 4... Nf6 {[%clk 0:02:59.1]} 5. Nf3 {[%clk
0:02:41.7]} 5... c6 {[%clk 0:02:57.8]} 6. Be2 {[%clk 0:02:40.2]} 6... Bf5 {[%clk
0:02:57.2]} 7. Be3 {[%clk 0:02:17.7]} 7... h6 {[%clk 0:02:53.2]} 8. Qd2 {[%clk
0:01:50.7]} 8... e6 {[%clk 0:02:51.3]} 9. h3 {[%clk 0:01:50.1]} 9... Bb4 {[%clk
0:02:49.3]} 10. g4 {[%clk 0:01:43.6]} 10... Ne4 {[%clk 0:02:37.9]} 11. Qd3
{[%clk 0:01:31.6]} 11... Nxf2 {[%clk 0:02:37.3]} 12. Qc4 {[%clk 0:01:10.9]}
12... Bxc3+ {[%clk 0:02:32.6]} 13. Kxf2 {[%clk 0:00:56.6]} 13... Ba5 {[%clk
0:02:15.3]} 14. gxf5 {[%clk 0:00:37.3]} 14... exf5 {[%clk 0:02:09.6]} 15. Ne5
{[%clk 0:00:32.3]} 15... Qh4+ {[%clk 0:02:05.9]} 16. Kf1 {[%clk 0:00:28.9]}
16... O-O {[%clk 0:02:01]} 17. Ng6 {[%clk 0:00:22.9]} 17... Qe4 {[%clk
0:01:58.4]} 18. Kf2 {[%clk 0:00:12.9]} 18... Re8 {[%clk 0:01:57.2]} 19. Qb3
{[%clk 0:00:11.5]} 19... Qxe3+ {[%clk 0:01:39]} 20. Qxe3 {[%clk 0:00:10.5]}
20... Rxe3 {[%clk 0:01:38.7]} 21. Kxe3 {[%clk 0:00:11.4]} 21... fxg6 {[%clk
0:01:39.1]} 22. Rhg1 {[%clk 0:00:10.1]} 22... Kf7 {[%clk 0:01:35.1]} 23. Bc4+
{[%clk 0:00:09.3]} 23... Kf6 {[%clk 0:01:35.3]} 24. Rae1 {[%clk 0:00:09.1]}
24... Nd7 {[%clk 0:01:25.7]} 25. c3 {[%clk 0:00:08.7]} 25... Bc7 {[%clk
0:01:21.8]} 26. Kf3 {[%clk 0:00:08.2]} 26... Nf8 {[%clk 0:01:21.8]} 27. Rg2
{[%clk 0:00:06.2]} 27... g5 {[%clk 0:01:21.9]} 28. Rge2 {[%clk 0:00:03.5]} 28...
Bf4 {[%clk 0:00:58.8]} 29. Re7 {[%clk 0:00:02.4]} 29... h5 {[%clk 0:00:54.6]}
0-1

[Event "*** SCC Grand Prix: Titled Tuesday Blitz"]
[Site "Chess.com"]
[Date "2020.09.08"]
[Round "7"]
[White "Ole83"]
[Black "MrrRefrao"]
[Result "0-1"]
[WhiteElo "2341"]
[BlackElo "2234"]
[TimeControl "180+1"]
[EndTime "11:17:58 PDT"]
[Termination "MrrRefrao won by resignation"]

1. c4 {[%clk 0:03:00.1]} 1... e5 {[%clk 0:02:45.5]} 2. Nc3 {[%clk 0:02:59.5]}
2... g6 {[%clk 0:02:40.8]} 3. g3 {[%clk 0:02:58.9]} 3... Bg7 {[%clk 0:02:40.8]}
4. Bg2 {[%clk 0:02:58]} 4... d6 {[%clk 0:02:41.7]} 5. d3 {[%clk 0:02:57.8]} 5...
f5 {[%clk 0:02:41.4]} 6. e4 {[%clk 0:02:56]} 6... Nf6 {[%clk 0:02:39.4]} 7. Nge2
{[%clk 0:02:55.7]} 7... O-O {[%clk 0:02:39.4]} 8. O-O {[%clk 0:02:54.2]} 8...
Nc6 {[%clk 0:02:38]} 9. Bg5 {[%clk 0:02:40.1]} 9... h6 {[%clk 0:02:35.7]} 10.
Bxf6 {[%clk 0:02:37.4]} 10... Bxf6 {[%clk 0:02:34.6]} 11. exf5 {[%clk
0:02:30.4]} 11... Bxf5 {[%clk 0:02:30.4]} 12. Ne4 {[%clk 0:02:27]} 12... Bg7
{[%clk 0:02:29.9]} 13. Qd2 {[%clk 0:02:12.6]} 13... Qd7 {[%clk 0:02:24.3]} 14.
Rfe1 {[%clk 0:02:04.6]} 14... Bg4 {[%clk 0:02:19.8]} 15. Qe3 {[%clk 0:01:56]}
15... Rf7 {[%clk 0:02:13.5]} 16. f3 {[%clk 0:01:55.2]} 16... Bh3 {[%clk
0:02:11.4]} 17. Rf1 {[%clk 0:01:52.6]} 17... Raf8 {[%clk 0:02:10.2]} 18. Rf2
{[%clk 0:01:52.4]} 18... Bf5 {[%clk 0:01:34.4]} 19. Raf1 {[%clk 0:01:44.3]}
19... b6 {[%clk 0:01:18.1]} 20. f4 {[%clk 0:01:38.8]} 20... exf4 {[%clk
0:01:09.9]} 21. Rxf4 {[%clk 0:01:37.9]} 21... Ne5 {[%clk 0:00:47.1]} 22. N2c3
{[%clk 0:01:26.4]} 22... g5 {[%clk 0:00:45.4]} 23. Rxf5 {[%clk 0:01:17.3]} 23...
Rxf5 {[%clk 0:00:44.9]} 24. Rxf5 {[%clk 0:01:12.3]} 24... Qxf5 {[%clk
0:00:45.8]} 25. h3 {[%clk 0:01:10.1]} 25... Nf3+ {[%clk 0:00:29.3]} 26. Kh1
{[%clk 0:01:08.6]} 26... Bd4 {[%clk 0:00:21.5]} 27. Qe2 {[%clk 0:01:05.6]} 27...
g4 {[%clk 0:00:14.8]} 28. h4 {[%clk 0:01:03.2]} 28... Qe5 {[%clk 0:00:12]} 29.
Nd5 {[%clk 0:01:00]} 29... c6 {[%clk 0:00:12]} 30. Nf4 {[%clk 0:00:56.5]} 30...
Rxf4 {[%clk 0:00:11.6]} 31. gxf4 {[%clk 0:00:56]} 31... Qxf4 {[%clk 0:00:12.5]}
32. Bxf3 {[%clk 0:00:56.4]} 32... gxf3 {[%clk 0:00:12.6]} 33. Qf1 {[%clk
0:00:53.8]} 33... Qxh4+ {[%clk 0:00:12.2]} 0-1

[Event "*** SCC Grand Prix: Titled Tuesday Blitz"]
[Site "Chess.com"]
[Date "2020.09.08"]
[Round "7"]
[White "awesomevishesh"]
[Black "Machidon"]
[Result "1-0"]
[WhiteElo "2403"]
[BlackElo "2536"]
[TimeControl "180+1"]
[EndTime "11:18:00 PDT"]
[Termination "awesomevishesh won by resignation"]

1. e4 {[%clk 0:03:00.9]} 1... c6 {[%clk 0:02:59.9]} 2. Nf3 {[%clk 0:02:59.4]}
2... d5 {[%clk 0:03:00.8]} 3. d3 {[%clk 0:02:59.6]} 3... dxe4 {[%clk 0:03:00.6]}
4. dxe4 {[%clk 0:03:00.5]} 4... Qxd1+ {[%clk 0:03:00.8]} 5. Kxd1 {[%clk
0:03:01.1]} 5... Bg4 {[%clk 0:03:01.4]} 6. Be2 {[%clk 0:02:59.5]} 6... Bxf3
{[%clk 0:03:01]} 7. Bxf3 {[%clk 0:02:57.9]} 7... e6 {[%clk 0:03:01.9]} 8. Nd2
{[%clk 0:02:55.3]} 8... Nd7 {[%clk 0:03:02.1]} 9. g3 {[%clk 0:02:43.5]} 9... Ne7
{[%clk 0:02:50.1]} 10. a4 {[%clk 0:02:40.6]} 10... Ng6 {[%clk 0:02:45.5]} 11.
Ke2 {[%clk 0:02:39.7]} 11... h5 {[%clk 0:02:28]} 12. h4 {[%clk 0:02:33.2]} 12...
Nge5 {[%clk 0:02:28]} 13. Bg2 {[%clk 0:02:33]} 13... O-O-O {[%clk 0:02:17.1]}
14. Nf3 {[%clk 0:02:14.8]} 14... Nxf3 {[%clk 0:02:11.1]} 15. Bxf3 {[%clk
0:02:15.4]} 15... Ne5 {[%clk 0:02:12]} 16. Bg2 {[%clk 0:02:15.6]} 16... Bc5
{[%clk 0:02:12.6]} 17. Bf4 {[%clk 0:02:04.4]} 17... Ng4 {[%clk 0:02:08.3]} 18.
f3 {[%clk 0:02:03.7]} 18... Nf6 {[%clk 0:02:05.8]} 19. a5 {[%clk 0:01:51.1]}
19... Rd7 {[%clk 0:01:53.9]} 20. c3 {[%clk 0:01:49.5]} 20... Rhd8 {[%clk
0:01:20.9]} 21. b4 {[%clk 0:01:47.3]} 21... Be7 {[%clk 0:01:21.4]} 22. Be3
{[%clk 0:01:39.1]} 22... Kb8 {[%clk 0:01:20.3]} 23. Rhd1 {[%clk 0:01:21.8]}
23... Bd6 {[%clk 0:01:05.2]} 24. Rxd6 {[%clk 0:01:14]} 24... Rxd6 {[%clk
0:01:06.1]} 25. e5 {[%clk 0:01:12.4]} 25... R6d7 {[%clk 0:01:02.2]} 26. exf6
{[%clk 0:01:11]} 26... gxf6 {[%clk 0:01:03.1]} 27. f4 {[%clk 0:01:07.7]} 27...
e5 {[%clk 0:01:00]} 28. Bf3 {[%clk 0:01:00.3]} 28... Re7 {[%clk 0:00:50.4]} 29.
f5 {[%clk 0:00:50.7]} 29... Rg8 {[%clk 0:00:35]} 30. Kf2 {[%clk 0:00:50.2]}
30... Rd7 {[%clk 0:00:30.2]} 31. Bxh5 {[%clk 0:00:48.5]} 31... Rd3 {[%clk
0:00:30.2]} 32. Rc1 {[%clk 0:00:48]} 32... Rgd8 {[%clk 0:00:21.5]} 33. Bxf7
{[%clk 0:00:46.7]} 33... Rd1 {[%clk 0:00:21.3]} 1-0

[Event "*** SCC Grand Prix: Titled Tuesday Blitz"]
[Site "Chess.com"]
[Date "2020.09.08"]
[Round "7"]
[White "dretch"]
[Black "PSvidler"]
[Result "1-0"]
[WhiteElo "2794"]
[BlackElo "2915"]
[TimeControl "180+1"]
[EndTime "11:18:02 PDT"]
[Termination "dretch won by resignation"]

1. d4 {[%clk 0:03:00.7]} 1... d6 {[%clk 0:02:57.5]} 2. Nf3 {[%clk 0:03:00.5]}
2... Bg4 {[%clk 0:02:56.8]} 3. c4 {[%clk 0:02:57.9]} 3... Bxf3 {[%clk
0:02:55.6]} 4. exf3 {[%clk 0:02:57.1]} 4... c6 {[%clk 0:02:52.6]} 5. Nc3 {[%clk
0:02:53.9]} 5... g6 {[%clk 0:02:52.7]} 6. Bd3 {[%clk 0:02:48.8]} 6... Bg7 {[%clk
0:02:52.7]} 7. Be3 {[%clk 0:02:48.8]} 7... e6 {[%clk 0:02:48.8]} 8. h4 {[%clk
0:02:45.6]} 8... h5 {[%clk 0:02:38.4]} 9. Qd2 {[%clk 0:02:45.1]} 9... d5 {[%clk
0:02:35]} 10. O-O-O {[%clk 0:02:45]} 10... Ne7 {[%clk 0:02:34.9]} 11. g4 {[%clk
0:02:44.7]} 11... Nd7 {[%clk 0:02:33.7]} 12. Kb1 {[%clk 0:02:43]} 12... dxc4
{[%clk 0:02:30]} 13. Bxc4 {[%clk 0:02:42.6]} 13... Nb6 {[%clk 0:02:30.6]} 14.
Bb3 {[%clk 0:02:31]} 14... Ned5 {[%clk 0:02:22.4]} 15. Bg5 {[%clk 0:02:30.3]}
15... Bf6 {[%clk 0:02:07.5]} 16. gxh5 {[%clk 0:02:14.6]} 16... Rxh5 {[%clk
0:02:04.7]} 17. Ne4 {[%clk 0:02:12.6]} 17... Bxg5 {[%clk 0:01:56.4]} 18. hxg5
{[%clk 0:02:11.4]} 18... Qc7 {[%clk 0:01:53.6]} 19. Rxh5 {[%clk 0:02:07.9]}
19... gxh5 {[%clk 0:01:53.5]} 20. Rh1 {[%clk 0:02:00.1]} 20... O-O-O {[%clk
0:01:48.1]} 21. Rxh5 {[%clk 0:02:00]} 21... Kb8 {[%clk 0:01:17.2]} 22. Rh7
{[%clk 0:01:59.6]} 22... Rg8 {[%clk 0:01:01.5]} 23. a3 {[%clk 0:01:50.4]} 23...
a6 {[%clk 0:01:01.6]} 24. Ka2 {[%clk 0:01:40]} 24... Ka7 {[%clk 0:00:55.2]} 25.
Qa5 {[%clk 0:01:37.4]} 25... Qe7 {[%clk 0:00:51.8]} 26. Qc5 {[%clk 0:01:35.6]}
26... Qxc5 {[%clk 0:00:44.9]} 27. dxc5 {[%clk 0:01:35.1]} 27... Nd7 {[%clk
0:00:45]} 28. Rxf7 {[%clk 0:01:31.9]} 28... Ne5 {[%clk 0:00:45.1]} 29. Rh7
{[%clk 0:01:30.6]} 29... Nxf3 {[%clk 0:00:43.6]} 30. Nd6 {[%clk 0:01:26.4]}
30... Rxg5 {[%clk 0:00:43.5]} 31. Rxb7+ {[%clk 0:01:25.7]} 31... Ka8 {[%clk
0:00:43.6]} 32. Rf7 {[%clk 0:01:25.4]} 32... Nd2 {[%clk 0:00:35.4]} 33. f4
{[%clk 0:01:22.6]} 33... Rg2 {[%clk 0:00:33.8]} 34. Bxd5 {[%clk 0:01:19]} 34...
exd5 {[%clk 0:00:32.1]} 35. f5 {[%clk 0:01:19.4]} 35... Nc4 {[%clk 0:00:26]} 36.
Kb3 {[%clk 0:01:07.4]} 36... Rxb2+ {[%clk 0:00:19.6]} 37. Kc3 {[%clk 0:01:07.3]}
37... Rf2 {[%clk 0:00:19.4]} 38. Rf8+ {[%clk 0:01:00.1]} 38... Ka7 {[%clk
0:00:19.3]} 39. f6 {[%clk 0:01:00.3]} 39... Ne5 {[%clk 0:00:17.9]} 40. Re8
{[%clk 0:00:53.6]} 40... Rf3+ {[%clk 0:00:17.1]} 41. Kc2 {[%clk 0:00:53.6]}
41... Nc4 {[%clk 0:00:16.8]} 42. Re7+ {[%clk 0:00:52.8]} 42... Kb8 {[%clk
0:00:16.7]} 43. Nxc4 {[%clk 0:00:52.9]} 43... dxc4 {[%clk 0:00:16.7]} 44. f7
{[%clk 0:00:53.1]} 1-0

[Event "*** SCC Grand Prix: Titled Tuesday Blitz"]
[Site "Chess.com"]
[Date "2020.09.08"]
[Round "7"]
[White "Mikheev1976"]
[Black "wannabe2700"]
[Result "0-1"]
[WhiteElo "2406"]
[BlackElo "2644"]
[TimeControl "180+1"]
[EndTime "11:18:04 PDT"]
[Termination "wannabe2700 won by resignation"]

1. d4 {[%clk 0:03:00.3]} 1... f5 {[%clk 0:03:00]} 2. Nf3 {[%clk 0:02:59.5]} 2...
Nf6 {[%clk 0:03:00.2]} 3. g3 {[%clk 0:02:59.7]} 3... g6 {[%clk 0:03:00.7]} 4.
Bg2 {[%clk 0:03:00.6]} 4... Bg7 {[%clk 0:03:01.3]} 5. O-O {[%clk 0:03:01.2]}
5... O-O {[%clk 0:03:02.2]} 6. b3 {[%clk 0:03:01.5]} 6... d6 {[%clk 0:03:02.1]}
7. Bb2 {[%clk 0:03:01.9]} 7... c6 {[%clk 0:03:02.6]} 8. Nbd2 {[%clk 0:03:00.5]}
8... Na6 {[%clk 0:02:59.9]} 9. c4 {[%clk 0:02:51.3]} 9... Qe8 {[%clk 0:02:51.6]}
10. Qc2 {[%clk 0:02:33.3]} 10... Nb4 {[%clk 0:02:48.8]} 11. Qb1 {[%clk
0:02:31.7]} 11... a5 {[%clk 0:02:48.6]} 12. a3 {[%clk 0:02:31.3]} 12... Na6
{[%clk 0:02:48.9]} 13. Qc2 {[%clk 0:02:28.8]} 13... h6 {[%clk 0:02:38.9]} 14.
Rad1 {[%clk 0:02:10.6]} 14... Qf7 {[%clk 0:02:38.2]} 15. Ne1 {[%clk 0:02:01.2]}
15... g5 {[%clk 0:02:22.6]} 16. e3 {[%clk 0:01:52.2]} 16... f4 {[%clk
0:02:19.2]} 17. exf4 {[%clk 0:01:51.3]} 17... gxf4 {[%clk 0:02:19.2]} 18. Nd3
{[%clk 0:01:27.3]} 18... Bf5 {[%clk 0:02:12.7]} 19. Qc3 {[%clk 0:01:24.3]} 19...
Nh5 {[%clk 0:02:06]} 20. Ne4 {[%clk 0:01:02.8]} 20... c5 {[%clk 0:01:59.1]} 21.
Qd2 {[%clk 0:00:59.7]} 21... cxd4 {[%clk 0:01:48.3]} 22. Nxf4 {[%clk 0:00:58.3]}
22... Bxe4 {[%clk 0:01:47.5]} 23. Bxe4 {[%clk 0:00:53]} 23... Nxf4 {[%clk
0:01:47.2]} 24. gxf4 {[%clk 0:00:45.8]} 24... Nc5 {[%clk 0:01:45.7]} 25. Bg2
{[%clk 0:00:35.5]} 25... Nxb3 {[%clk 0:01:42]} 26. Qc2 {[%clk 0:00:33]} 26... a4
{[%clk 0:01:29.7]} 27. Bxb7 {[%clk 0:00:30.3]} 27... Rab8 {[%clk 0:01:29.7]} 28.
Bc6 {[%clk 0:00:29.1]} 28... Qxf4 {[%clk 0:01:26]} 29. Kh1 {[%clk 0:00:24.3]}
29... Nc5 {[%clk 0:01:11.1]} 30. Rg1 {[%clk 0:00:23.2]} 30... e5 {[%clk
0:01:03.5]} 31. Rxg7+ {[%clk 0:00:17.3]} 31... Kxg7 {[%clk 0:01:01.4]} 32. Rg1+
{[%clk 0:00:18]} 32... Kh8 {[%clk 0:00:58.4]} 33. Qg6 {[%clk 0:00:17.8]} 33...
Rg8 {[%clk 0:00:53.3]} 34. Qf7 {[%clk 0:00:05.8]} 34... Rxg1+ {[%clk 0:00:51]}
35. Kxg1 {[%clk 0:00:06.7]} 35... Qxf7 {[%clk 0:00:50.9]} 0-1

[Event "*** SCC Grand Prix: Titled Tuesday Blitz"]
[Site "Chess.com"]
[Date "2020.09.08"]
[Round "7"]
[White "Sergey85Rodchenkov"]
[Black "Nayemhaque22"]
[Result "1-0"]
[WhiteElo "2500"]
[BlackElo "2343"]
[TimeControl "180+1"]
[EndTime "11:18:06 PDT"]
[Termination "Sergey85Rodchenkov won by checkmate"]

1. e4 {[%clk 0:03:00.9]} 1... e5 {[%clk 0:02:59.8]} 2. Nf3 {[%clk 0:03:00.8]}
2... Nc6 {[%clk 0:02:59.6]} 3. Bc4 {[%clk 0:03:00.8]} 3... Nf6 {[%clk
0:02:59.6]} 4. d3 {[%clk 0:03:01.1]} 4... Be7 {[%clk 0:02:59.6]} 5. O-O {[%clk
0:03:01.2]} 5... O-O {[%clk 0:03:00.5]} 6. Re1 {[%clk 0:03:01.7]} 6... d6 {[%clk
0:03:00.6]} 7. c3 {[%clk 0:03:02.1]} 7... Na5 {[%clk 0:03:00.4]} 8. Bb5 {[%clk
0:03:02]} 8... a6 {[%clk 0:03:00.8]} 9. Ba4 {[%clk 0:03:02.1]} 9... b5 {[%clk
0:03:00.8]} 10. Bc2 {[%clk 0:03:02.6]} 10... c5 {[%clk 0:03:01.1]} 11. Nbd2
{[%clk 0:03:01.6]} 11... Nc6 {[%clk 0:03:00.1]} 12. Nf1 {[%clk 0:03:01.6]} 12...
Re8 {[%clk 0:02:58.8]} 13. a4 {[%clk 0:03:01.1]} 13... Be6 {[%clk 0:02:56.8]}
14. Ng3 {[%clk 0:03:00.4]} 14... b4 {[%clk 0:02:21.4]} 15. h3 {[%clk 0:02:58.4]}
15... Bf8 {[%clk 0:02:19.7]} 16. d4 {[%clk 0:02:53.1]} 16... cxd4 {[%clk
0:02:06.3]} 17. cxd4 {[%clk 0:02:50.3]} 17... exd4 {[%clk 0:02:03.5]} 18. b3
{[%clk 0:02:42.6]} 18... d5 {[%clk 0:01:58]} 19. e5 {[%clk 0:02:40.8]} 19... Nd7
{[%clk 0:01:41.9]} 20. Bf4 {[%clk 0:02:32.3]} 20... g6 {[%clk 0:01:24.8]} 21.
Nxd4 {[%clk 0:02:21.2]} 21... Nxd4 {[%clk 0:01:24.5]} 22. Qxd4 {[%clk
0:02:20.6]} 22... Rc8 {[%clk 0:01:21.8]} 23. Qd2 {[%clk 0:02:01.3]} 23... Rc3
{[%clk 0:01:05.2]} 24. Ne2 {[%clk 0:01:56.1]} 24... Rc8 {[%clk 0:00:42.1]} 25.
Nd4 {[%clk 0:01:47.5]} 25... Nc5 {[%clk 0:00:39]} 26. Rad1 {[%clk 0:01:35]}
26... Qb6 {[%clk 0:00:31.4]} 27. Bh6 {[%clk 0:01:23.4]} 27... Be7 {[%clk
0:00:20.8]} 28. Bg5 {[%clk 0:01:21.5]} 28... Bf8 {[%clk 0:00:20.1]} 29. Bf6
{[%clk 0:01:19.8]} 29... Ne4 {[%clk 0:00:16.8]} 30. Bxe4 {[%clk 0:01:18.1]}
30... dxe4 {[%clk 0:00:17.6]} 31. Rxe4 {[%clk 0:01:18.3]} 31... Rc3 {[%clk
0:00:14.9]} 32. Nxe6 {[%clk 0:01:10.8]} 32... Qxe6 {[%clk 0:00:15.8]} 33. Rd4
{[%clk 0:01:04.2]} 33... Qxb3 {[%clk 0:00:14.7]} 34. Rd8 {[%clk 0:01:02]} 34...
Rxd8 {[%clk 0:00:14.4]} 35. Qxd8 {[%clk 0:01:01.6]} 35... Qc2 {[%clk 0:00:09.1]}
36. Qxf8+ {[%clk 0:00:58.1]} 36... Kxf8 {[%clk 0:00:07.9]} 37. Rd8# {[%clk
0:00:58.7]} 1-0

[Event "*** SCC Grand Prix: Titled Tuesday Blitz"]
[Site "Chess.com"]
[Date "2020.09.08"]
[Round "7"]
[White "uthoang"]
[Black "MathiasWomacka"]
[Result "1/2-1/2"]
[WhiteElo "2277"]
[BlackElo "2410"]
[TimeControl "180+1"]
[EndTime "11:18:08 PDT"]
[Termination "Game drawn by agreement"]

1. d4 {[%clk 0:03:00.9]} 1... Nf6 {[%clk 0:02:59.2]} 2. Nf3 {[%clk 0:03:00.7]}
2... e6 {[%clk 0:02:59.3]} 3. g3 {[%clk 0:03:00.6]} 3... c5 {[%clk 0:02:58.4]}
4. c3 {[%clk 0:02:57.7]} 4... d5 {[%clk 0:02:56.9]} 5. Bg2 {[%clk 0:02:57.6]}
5... Nc6 {[%clk 0:02:57]} 6. O-O {[%clk 0:02:57.4]} 6... Be7 {[%clk 0:02:57.2]}
7. e3 {[%clk 0:02:57.5]} 7... O-O {[%clk 0:02:56.8]} 8. b3 {[%clk 0:02:57.7]}
8... b6 {[%clk 0:02:54.8]} 9. Bb2 {[%clk 0:02:57.7]} 9... Ba6 {[%clk 0:02:49.3]}
10. Re1 {[%clk 0:02:57.3]} 10... Rc8 {[%clk 0:02:49.2]} 11. Nbd2 {[%clk
0:02:57.1]} 11... Qc7 {[%clk 0:02:33.9]} 12. Rc1 {[%clk 0:02:55.5]} 12... Rfd8
{[%clk 0:02:31.2]} 13. Qc2 {[%clk 0:02:49.5]} 13... Bb7 {[%clk 0:02:11.1]} 14.
Qb1 {[%clk 0:02:48.3]} 14... a6 {[%clk 0:02:06.3]} 15. c4 {[%clk 0:02:46]} 15...
dxc4 {[%clk 0:02:02.3]} 16. Nxc4 {[%clk 0:02:43.7]} 16... b5 {[%clk 0:02:02.3]}
17. Nce5 {[%clk 0:02:39.4]} 17... Nxe5 {[%clk 0:02:02.1]} 18. Nxe5 {[%clk
0:02:34.1]} 18... Bxg2 {[%clk 0:02:00.4]} 19. Kxg2 {[%clk 0:02:35]} 19... Qb7+
{[%clk 0:01:58]} 20. Kg1 {[%clk 0:02:35.3]} 20... cxd4 {[%clk 0:01:46]} 21. Bxd4
{[%clk 0:02:30.3]} 21... h6 {[%clk 0:01:35.4]} 22. Rxc8 {[%clk 0:02:29.7]} 22...
Rxc8 {[%clk 0:01:34.7]} 23. Rc1 {[%clk 0:02:30.3]} 23... Ba3 {[%clk 0:01:21.8]}
24. Rxc8+ {[%clk 0:02:21.5]} 24... Qxc8 {[%clk 0:01:22.7]} 25. Qd3 {[%clk
0:02:21.2]} 25... Be7 {[%clk 0:01:07.6]} 26. Qc3 {[%clk 0:02:15.8]} 26... Qxc3
{[%clk 0:01:05.2]} 27. Bxc3 {[%clk 0:02:16.7]} 27... Nd5 {[%clk 0:01:02.6]} 28.
Bd4 {[%clk 0:02:13.3]} 28... f6 {[%clk 0:00:55.8]} 29. Nc6 {[%clk 0:02:13]}
29... Bd6 {[%clk 0:00:54.3]} 30. e4 {[%clk 0:02:05.3]} 30... Nb4 {[%clk
0:00:45.6]} 31. Nxb4 {[%clk 0:02:02.6]} 31... Bxb4 {[%clk 0:00:46.5]} 32. f3
{[%clk 0:02:01.4]} 32... Kf7 {[%clk 0:00:46]} 33. Kf2 {[%clk 0:02:01.7]} 33...
f5 {[%clk 0:00:46.3]} 34. Ke3 {[%clk 0:02:01.1]} 34... g6 {[%clk 0:00:46.4]} 35.
exf5 {[%clk 0:01:58.7]} 35... exf5 {[%clk 0:00:45.6]} 36. Be5 {[%clk 0:01:58.5]}
36... Ke6 {[%clk 0:00:44.9]} 37. Bg7 {[%clk 0:01:56.6]} 37... h5 {[%clk
0:00:43.8]} 38. h3 {[%clk 0:01:57]} 38... Kd5 {[%clk 0:00:42.9]} 39. Kd3 {[%clk
0:01:52.5]} 39... Bd6 {[%clk 0:00:40.7]} 40. g4 {[%clk 0:01:52.6]} 40... fxg4
{[%clk 0:00:37.6]} 41. fxg4 {[%clk 0:01:50.1]} 41... hxg4 {[%clk 0:00:36.4]} 42.
hxg4 {[%clk 0:01:50.5]} 42... Be5 {[%clk 0:00:36.5]} 43. Bh6 {[%clk 0:01:48.6]}
43... Bf6 {[%clk 0:00:33.6]} 44. a4 {[%clk 0:01:46.7]} 44... Ke5 {[%clk
0:00:29.6]} 45. axb5 {[%clk 0:01:46]} 45... axb5 {[%clk 0:00:28.9]} 46. Be3
{[%clk 0:01:46.2]} 46... Be7 {[%clk 0:00:28.1]} 47. Bd2 {[%clk 0:01:40.8]} 47...
Ba3 {[%clk 0:00:25.8]} 48. Be3 {[%clk 0:01:39.8]} 48... Be7 {[%clk 0:00:22.3]}
49. Bd2 {[%clk 0:01:39.9]} 49... Bh4 {[%clk 0:00:22.3]} 50. Be3 {[%clk
0:01:37.9]} 50... Bg3 {[%clk 0:00:22.1]} 51. Bd2 {[%clk 0:01:36.5]} 51... Bf4
{[%clk 0:00:22.1]} 52. Bc3+ {[%clk 0:01:36.9]} 52... Kd5 {[%clk 0:00:21.6]} 53.
Bf6 {[%clk 0:01:34.2]} 53... Bc1 {[%clk 0:00:19.8]} 54. Bc3 {[%clk 0:01:32.8]}
54... Bf4 {[%clk 0:00:19.4]} 55. Bg7 {[%clk 0:01:32.4]} 55... Bg5 {[%clk
0:00:18.1]} 1/2-1/2

[Event "*** SCC Grand Prix: Titled Tuesday Blitz"]
[Site "Chess.com"]
[Date "2020.09.08"]
[Round "7"]
[White "chesslh19"]
[Black "KyrgyzFighter"]
[Result "0-1"]
[WhiteElo "2206"]
[BlackElo "2353"]
[TimeControl "180+1"]
[EndTime "11:18:12 PDT"]
[Termination "KyrgyzFighter won on time"]

1. e4 {[%clk 0:03:00.9]} 1... e6 {[%clk 0:02:55.1]} 2. d4 {[%clk 0:03:00]} 2...
d5 {[%clk 0:02:55.2]} 3. Nd2 {[%clk 0:03:00.7]} 3... Nc6 {[%clk 0:02:54.3]} 4.
Ngf3 {[%clk 0:03:00.2]} 4... Nf6 {[%clk 0:02:53.6]} 5. e5 {[%clk 0:03:00.1]}
5... Nd7 {[%clk 0:02:53.9]} 6. Nb3 {[%clk 0:03:00.8]} 6... a5 {[%clk 0:02:53.7]}
7. a4 {[%clk 0:03:01.1]} 7... b6 {[%clk 0:02:54.1]} 8. Bb5 {[%clk 0:03:00.6]}
8... Na7 {[%clk 0:02:54.4]} 9. Bd3 {[%clk 0:02:24.6]} 9... c5 {[%clk 0:02:53.5]}
10. c4 {[%clk 0:02:16.6]} 10... Bb7 {[%clk 0:02:50.6]} 11. Bg5 {[%clk
0:02:03.2]} 11... Be7 {[%clk 0:02:44.3]} 12. Bxe7 {[%clk 0:02:03.1]} 12... Qxe7
{[%clk 0:02:45.2]} 13. O-O {[%clk 0:02:03.5]} 13... O-O {[%clk 0:02:42]} 14. Re1
{[%clk 0:01:53.6]} 14... h6 {[%clk 0:02:39]} 15. dxc5 {[%clk 0:01:24.9]} 15...
bxc5 {[%clk 0:02:34.8]} 16. Nxa5 {[%clk 0:01:20.9]} 16... Rab8 {[%clk
0:02:27.5]} 17. Nxb7 {[%clk 0:01:12.9]} 17... Rxb7 {[%clk 0:02:28.4]} 18. cxd5
{[%clk 0:01:11.4]} 18... exd5 {[%clk 0:02:28.8]} 19. Bb5 {[%clk 0:01:07.5]}
19... Nxb5 {[%clk 0:02:22.1]} 20. axb5 {[%clk 0:01:07.1]} 20... d4 {[%clk
0:02:20.9]} 21. b4 {[%clk 0:00:43.3]} 21... Rxb5 {[%clk 0:01:54.6]} 22. bxc5
{[%clk 0:00:41.5]} 22... Nxc5 {[%clk 0:01:54.2]} 23. Nxd4 {[%clk 0:00:32.7]}
23... Rb2 {[%clk 0:01:54.1]} 24. Rb1 {[%clk 0:00:20.8]} 24... Ra2 {[%clk
0:01:40.5]} 25. h3 {[%clk 0:00:15.8]} 25... Qh4 {[%clk 0:01:33.6]} 26. Re2
{[%clk 0:00:11.4]} 26... Rxe2 {[%clk 0:01:22.3]} 27. Nxe2 {[%clk 0:00:10.8]}
27... Rd8 {[%clk 0:01:22.6]} 28. Qc2 {[%clk 0:00:06.8]} 28... Nd3 {[%clk
0:01:22.4]} 29. Ng3 {[%clk 0:00:05.5]} 29... Nxe5 {[%clk 0:01:22.5]} 30. Rd1
{[%clk 0:00:04.2]} 30... Re8 {[%clk 0:01:12.5]} 31. Qb3 {[%clk 0:00:02.1]} 31...
Qf6 {[%clk 0:01:07.6]} 32. Rf1 {[%clk 0:00:02.1]} 32... Ng6 {[%clk 0:01:06.6]}
33. Qa2 {[%clk 0:00:01.8]} 33... Nf4 {[%clk 0:01:06.3]} 34. Qa4 {[%clk 0:00:02]}
34... Rd8 {[%clk 0:01:05.1]} 35. Qa5 {[%clk 0:00:02.1]} 35... Rd3 {[%clk
0:00:59.7]} 36. Qf5 {[%clk 0:00:02]} 36... Ne2+ {[%clk 0:00:50]} 0-1